Department Family,Entity,Date,Expense Type,Expense Area,Supplier,Transaction Number,Amount
DOH,London Ambulance Service NHS Trust,05/04/2019,Subscriptions To Associations,Clinical Audit & Research,Guys & St Thomas Nhs Foundation Trust,4125,"25,000.00"
DOH,London Ambulance Service NHS Trust,17/04/2019,Subscriptions To Associations,Clinical Audit & Research,Guys & St Thomas Nhs Foundation Trust,4131,"25,000.00"
DOH,London Ambulance Service NHS Trust,05/04/2019,Agency Professional Staff,Director Of Ops,Ministry Of Defence,453244,"28,272.00"
DOH,London Ambulance Service NHS Trust,08/04/2019,Rent,111 Nel Operations,Dooba Investments Iii Limited,453410,"64,285.08"
DOH,London Ambulance Service NHS Trust,08/04/2019,Service Charges,111 Nel Operations,Dooba Investments Iii Limited,453410,"23,487.13"
DOH,London Ambulance Service NHS Trust,08/04/2019,Rent,Maritime House Training Centre,Dooba Investments Iii Limited,453410,"65,445.72"
DOH,London Ambulance Service NHS Trust,08/04/2019,Service Charges,Maritime House Training Centre,Dooba Investments Iii Limited,453410,"45,960.46"
DOH,London Ambulance Service NHS Trust,10/04/2019,Computer Software,Quality Intelligence & Improv,Datix Ltd,453775,"31,205.55"
DOH,London Ambulance Service NHS Trust,03/04/2019,Data Network Rental,Networks,Daisy Communications Ltd,454618,"25,714.37"
DOH,London Ambulance Service NHS Trust,10/04/2019,Data Comms Maintenance,Hazardous Area Response Team,Excelerate Technology Ltd,456627,"106,412.40"
DOH,London Ambulance Service NHS Trust,10/04/2019,Computer Software Maintenance,111 Nel Operations,Daisy Communications Ltd,456752,"783,231.34"
DOH,London Ambulance Service NHS Trust,10/04/2019,Medical Equipment,Ambulance Procurement,Proact Medical Ltd,456950,"31,152.01"
DOH,London Ambulance Service NHS Trust,05/04/2019,Consultancy Fees,Im&T Tech Design Authority,Tm Management Solutions Ltd,458294,"46,950.00"
DOH,London Ambulance Service NHS Trust,05/04/2019,Vehicles,Capital,S & B Commercials Plc,458718,"40,455.60"
DOH,London Ambulance Service NHS Trust,05/04/2019,Vehicles,Capital,S & B Commercials Plc,458719,"40,455.00"
DOH,London Ambulance Service NHS Trust,05/04/2019,Vehicles,Capital,S & B Commercials Plc,458721,"40,455.60"
DOH,London Ambulance Service NHS Trust,05/04/2019,Vehicles,Capital,S & B Commercials Plc,458722,"40,455.00"
DOH,London Ambulance Service NHS Trust,05/04/2019,Vehicles,Capital,S & B Commercials Plc,458723,"40,455.60"
DOH,London Ambulance Service NHS Trust,05/04/2019,Vehicles,Capital,S & B Commercials Plc,458724,"40,455.60"
DOH,London Ambulance Service NHS Trust,05/04/2019,Vehicles,Capital,S & B Commercials Plc,458725,"40,455.60"
DOH,London Ambulance Service NHS Trust,05/04/2019,Vehicles,Capital,S & B Commercials Plc,458726,"40,455.00"
DOH,London Ambulance Service NHS Trust,05/04/2019,Vehicles,Capital,S & B Commercials Plc,458727,"40,455.60"
DOH,London Ambulance Service NHS Trust,05/04/2019,Vehicles,Capital,S & B Commercials Plc,458729,"40,455.60"
DOH,London Ambulance Service NHS Trust,05/04/2019,Vehicles,Capital,S & B Commercials Plc,458730,"40,455.00"
DOH,London Ambulance Service NHS Trust,05/04/2019,Vehicles,Capital,S & B Commercials Plc,458731,"40,455.00"
DOH,London Ambulance Service NHS Trust,05/04/2019,Vehicles,Capital,S & B Commercials Plc,458732,"40,455.00"
DOH,London Ambulance Service NHS Trust,05/04/2019,Vehicles,Capital,S & B Commercials Plc,458733,"40,455.00"
DOH,London Ambulance Service NHS Trust,05/04/2019,Vehicles,Capital,S & B Commercials Plc,458734,"40,455.00"
DOH,London Ambulance Service NHS Trust,05/04/2019,Vehicles,Capital,S & B Commercials Plc,458735,"40,455.00"
DOH,London Ambulance Service NHS Trust,05/04/2019,Vehicles,Capital,S & B Commercials Plc,458736,"40,455.00"
DOH,London Ambulance Service NHS Trust,05/04/2019,Vehicles,Capital,S & B Commercials Plc,458737,"40,455.00"
DOH,London Ambulance Service NHS Trust,05/04/2019,Vehicles,Capital,S & B Commercials Plc,458738,"40,455.00"
DOH,London Ambulance Service NHS Trust,05/04/2019,Vehicles,Capital,S & B Commercials Plc,458739,"40,455.60"
DOH,London Ambulance Service NHS Trust,05/04/2019,Vehicles,Capital,S & B Commercials Plc,458741,"40,455.00"
DOH,London Ambulance Service NHS Trust,05/04/2019,Vehicles,Capital,S & B Commercials Plc,458742,"40,455.60"
DOH,London Ambulance Service NHS Trust,05/04/2019,Vehicles,Capital,S & B Commercials Plc,458743,"40,455.00"
DOH,London Ambulance Service NHS Trust,05/04/2019,Vehicles,Capital,S & B Commercials Plc,458751,"40,455.00"
DOH,London Ambulance Service NHS Trust,05/04/2019,Vehicles,Capital,S & B Commercials Plc,458760,"40,455.00"
DOH,London Ambulance Service NHS Trust,05/04/2019,Vehicles,Capital,S & B Commercials Plc,458761,"40,455.00"
DOH,London Ambulance Service NHS Trust,12/04/2019,Cleaning Of Premises,Property Management,Lakethorne Ltd,458982,"94,085.84"
DOH,London Ambulance Service NHS Trust,05/04/2019,Cad Tools Maintenance,Cad Support,Northrop Grumman Information Technology,458992,"50,173.50"
DOH,London Ambulance Service NHS Trust,03/04/2019,Computer Software,111 Operations,Daisy Communications Ltd,459025,43121.66
DOH,London Ambulance Service NHS Trust,03/04/2019,Phone & Fax Calls,Networks,Bt Teleworker,459075,94153.51
DOH,London Ambulance Service NHS Trust,12/04/2019,Agency Nurses,111 Operations,Hays Specialist Recruitment Ltd,459236,161312.32
DOH,London Ambulance Service NHS Trust,10/04/2019,Professional Fees,Programme Management Office,Tm Management Solutions Ltd,459382,32550
DOH,London Ambulance Service NHS Trust,10/04/2019,Professional Fees,Workforce Analytics,Tm Management Solutions Ltd,459384,29100
DOH,London Ambulance Service NHS Trust,10/04/2019,Professional Fees,111 Project Implementation,Tm Management Solutions Ltd,459387,74100
DOH,London Ambulance Service NHS Trust,10/04/2019,Professional Fees,Connecting Clinicians,Tm Management Solutions Ltd,459388,46500
DOH,London Ambulance Service NHS Trust,05/04/2019,Vehicles,Capital,S & B Commercials Plc,459462,40455.6
DOH,London Ambulance Service NHS Trust,05/04/2019,Mobile Display Unit,Capital,Attobus Ltd,459465,72103.2
DOH,London Ambulance Service NHS Trust,10/04/2019,Vehicles,Capital,S & B Commercials Plc,459484,40455.6
DOH,London Ambulance Service NHS Trust,05/04/2019,Accident Repairs,Brent (C3) Group,Jubilee Coachworks Limited,459494,31796.92
DOH,London Ambulance Service NHS Trust,17/04/2019,Technical Support,Capital,Tm Management Solutions Ltd,459844,118680
DOH,London Ambulance Service NHS Trust,17/04/2019,Professional Fees,Im&T Tech Design Authority,Tm Management Solutions Ltd,459845,112896
DOH,London Ambulance Service NHS Trust,17/04/2019,Consultancy Fees,Im&T Pmo,Tm Management Solutions Ltd,459846,108624
DOH,London Ambulance Service NHS Trust,10/04/2019,Capitalised Software,Capital,Bt Plc,459880,40500
DOH,London Ambulance Service NHS Trust,10/04/2019,Computer Software,111 Operations,Bt Plc,459880,37679.98
DOH,London Ambulance Service NHS Trust,10/04/2019,Professional Fees,111 Operations,Bt Plc,459880,4110
DOH,London Ambulance Service NHS Trust,10/04/2019,Computer Software Maintenance,111 Project Implementation,Bt Plc,459884,86175.44
DOH,London Ambulance Service NHS Trust,12/04/2019,Blanket Purchase,Supply & Material Management,Thomas Kneale & Co Ltd,460051,33696.6
DOH,London Ambulance Service NHS Trust,10/04/2019,Vehicles,Capital,Wilker Auto Conversions,460375,59983
DOH,London Ambulance Service NHS Trust,10/04/2019,Vehicles,Capital,Wilker Auto Conversions,460376,59983
DOH,London Ambulance Service NHS Trust,05/04/2019,Private Ambulance Hire,Ops Central - Private Amb,St John Ambulance Londonprince,460423,35655.95
DOH,London Ambulance Service NHS Trust,10/04/2019,Buildings,Capital,Smith & Company Building & Company,460444,27490.8
DOH,London Ambulance Service NHS Trust,24/04/2019,Vehicles,Capital,S & B Commercials Plc,460543,40455
DOH,London Ambulance Service NHS Trust,24/04/2019,Vehicles,Capital,S & B Commercials Plc,460544,40455.6
DOH,London Ambulance Service NHS Trust,24/04/2019,Computer Software,Sift Income,Chambury Consulting Ltd,460550,85266.6
DOH,London Ambulance Service NHS Trust,10/04/2019,Consultancy Fees,Iuc 111 Recovery,Discidium Limited,460594,50600.4
DOH,London Ambulance Service NHS Trust,24/04/2019,Consultancy Fees,Capital,Bt Plc,460723,148914.45
DOH,London Ambulance Service NHS Trust,10/04/2019,Pts Control Maintenance,Systems,Dell Computer Corporation Ltd,460799,66180
DOH,London Ambulance Service NHS Trust,12/04/2019,Agency Nurses,111 Operations,Hays Specialist Recruitment Ltd,460816,56708.46
DOH,London Ambulance Service NHS Trust,10/04/2019,Vehicles,Capital,Attobus Ltd,460985,45720
DOH,London Ambulance Service NHS Trust,12/04/2019,Medical Equipment,Capital,Ferno (Uk),461021,75600
DOH,London Ambulance Service NHS Trust,24/04/2019,Computer Hardware,Capital,Xma Ltd,461037,37080
DOH,London Ambulance Service NHS Trust,24/04/2019,Computer Hardware,Capital,Xma Ltd,461040,36585.6
DOH,London Ambulance Service NHS Trust,24/04/2019,Contract Labour,Vehicle Resouce Centre,Churchill Contract Services Ltd,461241,112400.82
DOH,London Ambulance Service NHS Trust,24/04/2019,Training Accommodation,International Recruitment 1718,The Independents Hotel Reservations Ltd,461270,35640
DOH,London Ambulance Service NHS Trust,17/04/2019,Mobile Display Unit,Capital,Attobus Ltd,461535,102151.2
DOH,London Ambulance Service NHS Trust,12/04/2019,Private Ambulance Hire,Ops Central - Private Amb,Falck Uk Ambulance Service Ltd,461537,57631.67
DOH,London Ambulance Service NHS Trust,17/04/2019,Computer Software,Infrastructure Management,Software Box Ltd,461555,299802.38
DOH,London Ambulance Service NHS Trust,24/04/2019,Medical Equipment,Capital,Mangar International Ltd,461931,67980
DOH,London Ambulance Service NHS Trust,17/04/2019,Technical Support - Contract,Telent Mdt Maintenance,Telent Technology Services Ltd,461968,237972.6
DOH,London Ambulance Service NHS Trust,24/04/2019,Data Comms Maintenance,Hazardous Area Response Team,Excelerate Technology Ltd,462001,25147.2
DOH,London Ambulance Service NHS Trust,17/04/2019,Vehicle Recovery,Fleet Support Services,The Mansfield Group,462011,44966.88
DOH,London Ambulance Service NHS Trust,24/04/2019,Taxis & Mini Cabs,Sub-Contracted Transport,Addison Lee,462334,38970.48
DOH,London Ambulance Service NHS Trust,24/04/2019,Blanket Purchase,Supply & Material Management,James Walker Textiles Ltd,462534,34380
DOH,London Ambulance Service NHS Trust,24/04/2019,Computer Software,Im&T Pmo,Software Box Ltd,462544,64699.92
DOH,London Ambulance Service NHS Trust,10/04/2019,Computer Software Maintenance,111 Nel Operations,Daisy Communications Ltd,462552,-783231.34
DOH,London Ambulance Service NHS Trust,24/04/2019,Professional Fees,Director Of Finance,Pa Consulting Services Ltd,462556,168480
DOH,London Ambulance Service NHS Trust,24/04/2019,Buildings,Capital,Gray Dungate Poole Ltd,462630,145307.48
DOH,London Ambulance Service NHS Trust,17/04/2019,Computer Hardware,Capital,Dell Computer Corporation Ltd,462646,138686.48
DOH,London Ambulance Service NHS Trust,17/04/2019,Computer Hardware,Capital,Dell Computer Corporation Ltd,462647,41940
DOH,London Ambulance Service NHS Trust,17/04/2019,Computer Hardware,Capital,Dell Computer Corporation Ltd,462648,32640
DOH,London Ambulance Service NHS Trust,17/04/2019,Computer Hardware,Capital,Dell Computer Corporation Ltd,462683,32640
DOH,London Ambulance Service NHS Trust,17/04/2019,Computer Hardware,Capital,Dell Computer Corporation Ltd,462685,42660
DOH,London Ambulance Service NHS Trust,17/04/2019,Computer Hardware,Capital,Dell Computer Corporation Ltd,462688,32640
DOH,London Ambulance Service NHS Trust,17/04/2019,Computer Hardware,Capital,Dell Computer Corporation Ltd,462689,42660
DOH,London Ambulance Service NHS Trust,10/04/2019,Cad Tools Maintenance,Cad Support,Oracle Corporation Uk Limited,462690,27399.86
DOH,London Ambulance Service NHS Trust,24/04/2019,Data Comms Maintenance,Hazardous Area Response Team,Excelerate Technology Ltd,462722,25147.2
DOH,London Ambulance Service NHS Trust,24/04/2019,Health & Safety,Health & Safety,Trenton Fire Ltd,462815,42000
DOH,London Ambulance Service NHS Trust,24/04/2019,Salary Sacrifice - Cars Loan,Balance Sheet,Tuskerdirect Ltd,462921,92264.68
DOH,London Ambulance Service NHS Trust,08/04/2019,Prepayments To Non-Nhs Insuran,Balance Sheet,Qbe  Insurance (Europe) Ltd,463178,587594.56
DOH,London Ambulance Service NHS Trust,08/04/2019,Prepayments To Non-Nhs Insuran,Balance Sheet,Qbe  Insurance (Europe) Ltd,463180,150158.4
DOH,London Ambulance Service NHS Trust,24/04/2019,Computer Software,Workforce Analytics,Tm Management Solutions Ltd,463452,30000
DOH,London Ambulance Service NHS Trust,24/04/2019,Course And Conference Fees,Paramedic Workforce Developmen,Kingston University London,464019,57000
DOH,London Ambulance Service NHS Trust,24/04/2019,Course And Conference Fees,Paramedic Workforce Developmen,Kingston University London,464020,57000
DOH,London Ambulance Service NHS Trust,24/04/2019,Private Ambulance Hire,Ops Central - Private Amb,Falck Uk Ambulance Service Ltd,464023,50216.16
DOH,London Ambulance Service NHS Trust,24/04/2019,Marketing & Publty Advertising,Ceo Engagement,For All Our Wellbeing Cic,464744,29392.8
DOH,London Ambulance Service NHS Trust,17/04/2019,Service Charges,Maritime House Training Centre,Dooba Investments Iii Limited,464997,34860.9
DOH,London Ambulance Service NHS Trust,25/04/2019,Medical Gas,Director Of Ops,British Oxygen,62679,"106,720.30"
DOH,London Ambulance Service NHS Trust,15/04/2019,Fuel,Director Of Ops,BP Oil,62469,"228,233.84"
DOH,London Ambulance Service NHS Trust,18/04/2019,Child Care Arrangements,Payroll,Computerserve Vouchers,62527,"28,424.80"
DOH,London Ambulance Service NHS Trust,30/04/2019,Fuel,Director Of Ops,BP Oil,62969,"227,153.49"
DOH,London Ambulance Service NHS Trust,16/04/2019,CNST Contributions,Legal Services,NHSLA,62493,"371,063.50"
DOH,London Ambulance Service NHS Trust,16/04/2019,Liability to 3rd Party Scheme,Legal Services,NHSLA,62493,"47,807.80"
DOH,London Ambulance Service NHS Trust,16/04/2019,Property Expenses Scheme,Legal Services,NHSLA,62493,"1,337.70"
